[Event "Early-Titled-Tuesday-Blitz-April-23-2024"]
[Site "Chess.com"]
[Date "2024.04.23"]
[Round "10"]
[White "LeRoidesChampions"]
[Black "dvglko"]
[Result "1-0"]
[WhiteElo "2605"]
[BlackElo "2436"]
[TimeControl "180+1"]
[EndTime "10:02:06 PDT"]
[Termination "LeRoidesChampions won by checkmate"]

1. Nf3 {[%clk 0:03:00.6]} 1... d5 {[%clk 0:02:57.5]} 2. b3 {[%clk 0:03:01.5]}
2... c5 {[%clk 0:02:55.5]} 3. Bb2 {[%clk 0:03:01.6]} 3... Nc6 {[%clk 0:02:56.1]}
4. e3 {[%clk 0:03:02.3]} 4... a6 {[%clk 0:02:56.8]} 5. d4 {[%clk 0:03:02]} 5...
cxd4 {[%clk 0:02:51.5]} 6. exd4 {[%clk 0:03:00.2]} 6... Nf6 {[%clk 0:02:51.9]}
7. Nbd2 {[%clk 0:03:00.9]} 7... Bg4 {[%clk 0:02:52.3]} 8. a3 {[%clk 0:03:00.9]}
8... e6 {[%clk 0:02:52.8]} 9. Bd3 {[%clk 0:03:00.7]} 9... Bd6 {[%clk 0:02:53]}
10. h3 {[%clk 0:03:01.1]} 10... Bh5 {[%clk 0:02:52.3]} 11. O-O {[%clk
0:03:01.7]} 11... O-O {[%clk 0:02:41.1]} 12. Qe2 {[%clk 0:03:02.1]} 12... Bc7
{[%clk 0:02:35.5]} 13. Qe3 {[%clk 0:03:01.9]} 13... Bg6 {[%clk 0:02:27.8]} 14.
Ne5 {[%clk 0:03:00]} 14... Nxe5 {[%clk 0:02:20.1]} 15. dxe5 {[%clk 0:03:00.1]}
15... Nd7 {[%clk 0:02:19.4]} 16. Nf3 {[%clk 0:02:56.2]} 16... Rc8 {[%clk
0:02:09.5]} 17. Rac1 {[%clk 0:02:53.4]} 17... Qe7 {[%clk 0:02:07.6]} 18. Rfe1
{[%clk 0:02:44.2]} 18... Bb6 {[%clk 0:02:00.9]} 19. Qe2 {[%clk 0:02:41.5]} 19...
Rc6 {[%clk 0:01:42.1]} 20. a4 {[%clk 0:02:21.7]} 20... Ba5 {[%clk 0:01:19.6]}
21. Red1 {[%clk 0:02:19]} 21... Bc3 {[%clk 0:01:19.6]} 22. Bxc3 {[%clk
0:02:18.9]} 22... Rxc3 {[%clk 0:01:20.5]} 23. Bxg6 {[%clk 0:02:14.4]} 23... hxg6
{[%clk 0:01:21.4]} 24. Rd3 {[%clk 0:02:14.8]} 24... Rfc8 {[%clk 0:01:20.9]} 25.
Rxc3 {[%clk 0:01:57.9]} 25... Rxc3 {[%clk 0:01:21.8]} 26. Ne1 {[%clk 0:01:49.6]}
26... Qg5 {[%clk 0:01:18.3]} 27. Rd1 {[%clk 0:01:45.6]} 27... Nxe5 {[%clk
0:01:04.6]} 28. Rd4 {[%clk 0:01:45.6]} 28... Nc6 {[%clk 0:00:43.8]} 29. Rd3
{[%clk 0:01:43.7]} 29... Rxd3 {[%clk 0:00:42.6]} 30. Nxd3 {[%clk 0:01:44.6]}
30... Qh5 {[%clk 0:00:41.2]} 31. Qd2 {[%clk 0:01:42.2]} 31... d4 {[%clk
0:00:29]} 32. f3 {[%clk 0:01:39]} 32... Qd5 {[%clk 0:00:29.1]} 33. Qf4 {[%clk
0:01:36.7]} 33... e5 {[%clk 0:00:28.4]} 34. Qg5 {[%clk 0:01:35.5]} 34... Kh7
{[%clk 0:00:22.2]} 35. h4 {[%clk 0:01:35.6]} 35... f6 {[%clk 0:00:22.1]} 36. Qg4
{[%clk 0:01:36.1]} 36... f5 {[%clk 0:00:20.4]} 37. Qg5 {[%clk 0:01:36.2]} 37...
e4 {[%clk 0:00:20.9]} 38. Nf4 {[%clk 0:01:22.5]} 38... Qd6 {[%clk 0:00:20.8]}
39. h5 {[%clk 0:01:22.9]} 39... Ne7 {[%clk 0:00:14.3]} 40. hxg6+ {[%clk
0:01:21.3]} 40... Nxg6 {[%clk 0:00:14.9]} 41. Qh5+ {[%clk 0:01:21.7]} 41... Kg8
{[%clk 0:00:14.6]} 42. Nxg6 {[%clk 0:01:22.4]} 42... d3 {[%clk 0:00:09.9]} 43.
cxd3 {[%clk 0:01:02.2]} 43... exd3 {[%clk 0:00:10.8]} 44. f4 {[%clk 0:00:35]}
44... d2 {[%clk 0:00:09.7]} 45. Qd1 {[%clk 0:00:35.2]} 45... Qxg6 {[%clk
0:00:07.1]} 46. Qxd2 {[%clk 0:00:35.3]} 46... Qb6+ {[%clk 0:00:07.8]} 47. Kh1
{[%clk 0:00:32.5]} 47... Qh6+ {[%clk 0:00:06.7]} 48. Kg1 {[%clk 0:00:32.2]}
48... Qb6+ {[%clk 0:00:07.4]} 49. Kh2 {[%clk 0:00:32.8]} 49... Qh6+ {[%clk
0:00:07.1]} 50. Kg3 {[%clk 0:00:33.2]} 50... Qg6+ {[%clk 0:00:07.6]} 51. Kf3
{[%clk 0:00:31.5]} 51... Qc6+ {[%clk 0:00:07.7]} 52. Kf2 {[%clk 0:00:31.6]}
52... Qb6+ {[%clk 0:00:08]} 53. Qe3 {[%clk 0:00:32.2]} 53... Qd6 {[%clk
0:00:04.5]} 54. Qe8+ {[%clk 0:00:30.6]} 54... Kh7 {[%clk 0:00:04.5]} 55. Qh5+
{[%clk 0:00:30.5]} 55... Kg8 {[%clk 0:00:04.6]} 56. Qxf5 {[%clk 0:00:30]} 56...
Qb6+ {[%clk 0:00:04.9]} 57. Kg3 {[%clk 0:00:28.1]} 57... Qxb3+ {[%clk
0:00:05.4]} 58. Kh4 {[%clk 0:00:28.7]} 58... Qxa4 {[%clk 0:00:03.2]} 59. Qc8+
{[%clk 0:00:26.1]} 59... Kh7 {[%clk 0:00:02.6]} 60. Qf5+ {[%clk 0:00:26.3]}
60... Kh8 {[%clk 0:00:03.3]} 61. g4 {[%clk 0:00:23.6]} 61... Qe8 {[%clk
0:00:02.4]} 62. g5 {[%clk 0:00:18.2]} 62... Qe1+ {[%clk 0:00:02.6]} 63. Kh5
{[%clk 0:00:15.1]} 63... Qe2+ {[%clk 0:00:01.6]} 64. Kg6 {[%clk 0:00:07.9]}
64... Qe8+ {[%clk 0:00:01.9]} 65. Qf7 {[%clk 0:00:08.6]} 65... Qxf7+ {[%clk
0:00:02.7]} 66. Kxf7 {[%clk 0:00:09.3]} 66... a5 {[%clk 0:00:03.4]} 67. f5
{[%clk 0:00:10.1]} 67... a4 {[%clk 0:00:04]} 68. f6 {[%clk 0:00:10.8]} 68...
gxf6 {[%clk 0:00:04.5]} 69. g6 {[%clk 0:00:11.5]} 69... a3 {[%clk 0:00:05.4]}
70. g7+ {[%clk 0:00:12.2]} 70... Kh7 {[%clk 0:00:05.9]} 71. g8=Q+ {[%clk
0:00:13.1]} 71... Kh6 {[%clk 0:00:06.8]} 72. Qg6# {[%clk 0:00:14]} 1-0

[Event "Early-Titled-Tuesday-Blitz-April-23-2024"]
[Site "Chess.com"]
[Date "2024.04.23"]
[Round "10"]
[White "ViktoriyaTarasova"]
[Black "Boxerandchessplayer"]
[Result "0-1"]
[WhiteElo "2343"]
[BlackElo "2251"]
[TimeControl "180+1"]
[EndTime "10:02:06 PDT"]
[Termination "Boxerandchessplayer won by resignation"]

1. d4 {[%clk 0:03:00.9]} 1... e6 {[%clk 0:03:00.9]} 2. c4 {[%clk 0:02:59]} 2...
d5 {[%clk 0:02:59.6]} 3. Nc3 {[%clk 0:02:56.9]} 3... c6 {[%clk 0:02:58.5]} 4.
Nf3 {[%clk 0:02:56.6]} 4... Nf6 {[%clk 0:02:55.9]} 5. Bg5 {[%clk 0:02:55.8]}
5... Nbd7 {[%clk 0:02:56.1]} 6. e3 {[%clk 0:02:37.9]} 6... Be7 {[%clk 0:02:55]}
7. Qc2 {[%clk 0:02:37]} 7... O-O {[%clk 0:02:53.4]} 8. Bd3 {[%clk 0:02:35.4]}
8... dxc4 {[%clk 0:02:51.8]} 9. Bxc4 {[%clk 0:02:35.4]} 9... h6 {[%clk
0:02:51.9]} 10. Bh4 {[%clk 0:02:34.9]} 10... b6 {[%clk 0:02:51.4]} 11. O-O
{[%clk 0:02:34.2]} 11... Bb7 {[%clk 0:02:51.5]} 12. Bd3 {[%clk 0:02:33.8]} 12...
c5 {[%clk 0:02:47.6]} 13. Ne5 {[%clk 0:02:27.8]} 13... cxd4 {[%clk 0:02:23]} 14.
exd4 {[%clk 0:02:25.2]} 14... Rc8 {[%clk 0:02:23.5]} 15. Qe2 {[%clk 0:02:03.9]}
15... Nd5 {[%clk 0:02:09]} 16. Bxe7 {[%clk 0:01:53.7]} 16... Qxe7 {[%clk
0:02:09.9]} 17. Ne4 {[%clk 0:01:54]} 17... N7f6 {[%clk 0:02:10.5]} 18. Nxf6+
{[%clk 0:01:49.1]} 18... Nxf6 {[%clk 0:02:05.8]} 19. Rac1 {[%clk 0:01:47.5]}
19... Rfd8 {[%clk 0:02:06]} 20. Rxc8 {[%clk 0:01:38.1]} 20... Rxc8 {[%clk
0:02:02.5]} 21. Ba6 {[%clk 0:01:34.2]} 21... Rd8 {[%clk 0:01:55.6]} 22. Bxb7
{[%clk 0:01:31.3]} 22... Qxb7 {[%clk 0:01:56.5]} 23. Rd1 {[%clk 0:01:28.8]}
23... Nd7 {[%clk 0:01:29.9]} 24. Nxd7 {[%clk 0:01:22.1]} 24... Rxd7 {[%clk
0:01:28.5]} 25. h3 {[%clk 0:01:22.5]} 25... Rd5 {[%clk 0:01:28.9]} 26. Qc2
{[%clk 0:01:12.8]} 26... Qd7 {[%clk 0:01:28.3]} 27. Kh2 {[%clk 0:00:49]} 27...
g6 {[%clk 0:01:17.6]} 28. Qd2 {[%clk 0:00:15.4]} 28... Kg7 {[%clk 0:01:15.1]}
29. f4 {[%clk 0:00:10.7]} 29... f6 {[%clk 0:00:59.8]} 30. b3 {[%clk 0:00:09.9]}
30... e5 {[%clk 0:00:59.6]} 31. fxe5 {[%clk 0:00:10.6]} 31... fxe5 {[%clk
0:01:00.5]} 32. Qe3 {[%clk 0:00:10.2]} 32... exd4 {[%clk 0:00:59.6]} 33. Qe4
{[%clk 0:00:10.5]} 33... d3 {[%clk 0:00:58.1]} 34. Rd2 {[%clk 0:00:10]} 34...
Rd4 {[%clk 0:00:55.8]} 35. Qe5+ {[%clk 0:00:09.6]} 35... Kh7 {[%clk 0:00:56.2]}
36. g3 {[%clk 0:00:09.1]} 36... Rd5 {[%clk 0:00:55]} 37. Qe4 {[%clk 0:00:09.4]}
37... h5 {[%clk 0:00:54.7]} 38. Qf4 {[%clk 0:00:09.2]} 38... Rd4 {[%clk
0:00:54]} 39. Qf3 {[%clk 0:00:09]} 39... h4 {[%clk 0:00:53.9]} 40. gxh4 {[%clk
0:00:08.9]} 40... Qd6+ {[%clk 0:00:17.7]} 41. Kg2 {[%clk 0:00:09.3]} 41... Qd5
{[%clk 0:00:18]} 42. Qxd5 {[%clk 0:00:08.5]} 42... Rxd5 {[%clk 0:00:18.9]} 43.
Kf3 {[%clk 0:00:08.6]} 43... Kh6 {[%clk 0:00:19.4]} 44. Ke4 {[%clk 0:00:08.2]}
44... Rd8 {[%clk 0:00:19]} 45. Rxd3 {[%clk 0:00:06.1]} 45... Rxd3 {[%clk
0:00:18.9]} 46. Kxd3 {[%clk 0:00:06.9]} 46... Kh5 {[%clk 0:00:19.8]} 47. Kc4
{[%clk 0:00:07.5]} 47... Kxh4 {[%clk 0:00:20.2]} 48. Kb5 {[%clk 0:00:08.2]}
48... Kxh3 {[%clk 0:00:20.9]} 49. Ka6 {[%clk 0:00:08.9]} 49... g5 {[%clk
0:00:21.8]} 50. Kxa7 {[%clk 0:00:09.7]} 50... g4 {[%clk 0:00:22.7]} 51. Kxb6
{[%clk 0:00:10.2]} 51... g3 {[%clk 0:00:23.6]} 52. a4 {[%clk 0:00:10.2]} 52...
g2 {[%clk 0:00:24.5]} 53. Kb7 {[%clk 0:00:10.2]} 53... g1=Q {[%clk 0:00:25.4]}
54. a5 {[%clk 0:00:11]} 54... Qg7+ {[%clk 0:00:22.2]} 55. Kb6 {[%clk 0:00:11]}
55... Qf6+ {[%clk 0:00:21.3]} 56. Kb7 {[%clk 0:00:11]} 56... Qf7+ {[%clk
0:00:21.1]} 57. Kb6 {[%clk 0:00:11.4]} 57... Qxb3+ {[%clk 0:00:20.3]} 58. Ka7
{[%clk 0:00:11.1]} 58... Kg4 {[%clk 0:00:15.8]} 59. a6 {[%clk 0:00:11.2]} 59...
Kf5 {[%clk 0:00:16.7]} 60. Ka8 {[%clk 0:00:11.6]} 60... Ke6 {[%clk 0:00:11.3]}
61. a7 {[%clk 0:00:11.9]} 61... Qd5+ {[%clk 0:00:10.2]} 62. Kb8 {[%clk
0:00:12.3]} 62... Qb5+ {[%clk 0:00:09.8]} 63. Ka8 {[%clk 0:00:12.4]} 63... Qe8+
{[%clk 0:00:05.8]} 64. Kb7 {[%clk 0:00:12.5]} 64... Qd7+ {[%clk 0:00:05.6]} 65.
Kb8 {[%clk 0:00:09.5]} 65... Qd8+ {[%clk 0:00:05]} 66. Kb7 {[%clk 0:00:09.8]}
66... Qd7+ {[%clk 0:00:05.6]} 67. Kb6 {[%clk 0:00:06.9]} 67... Qc8 {[%clk
0:00:04.8]} 0-1

[Event "Early-Titled-Tuesday-Blitz-April-23-2024"]
[Site "Chess.com"]
[Date "2024.04.23"]
[Round "10"]
[White "Makswolf200817"]
[Black "Thunderbolt135"]
[Result "1-0"]
[WhiteElo "2821"]
[BlackElo "2686"]
[TimeControl "180+1"]
[EndTime "10:02:30 PDT"]
[Termination "Makswolf200817 won by checkmate"]

1. d4 {[%clk 0:03:00.9]} 1... Nf6 {[%clk 0:03:00.4]} 2. c4 {[%clk 0:03:01.6]}
2... e6 {[%clk 0:03:01]} 3. g3 {[%clk 0:03:01.3]} 3... d5 {[%clk 0:03:01.1]} 4.
Bg2 {[%clk 0:03:02]} 4... Bb4+ {[%clk 0:02:56.6]} 5. Bd2 {[%clk 0:03:01.9]} 5...
a5 {[%clk 0:02:57.1]} 6. Nf3 {[%clk 0:03:02]} 6... O-O {[%clk 0:02:56.7]} 7. Qc2
{[%clk 0:03:00.5]} 7... c5 {[%clk 0:02:54.3]} 8. dxc5 {[%clk 0:03:00.4]} 8... d4
{[%clk 0:02:55.2]} 9. Bxb4 {[%clk 0:03:00.8]} 9... axb4 {[%clk 0:02:56.1]} 10.
Ne5 {[%clk 0:03:01.3]} 10... Qc7 {[%clk 0:02:47]} 11. Nd3 {[%clk 0:03:00.4]}
11... Na6 {[%clk 0:02:40.1]} 12. Nd2 {[%clk 0:03:00.4]} 12... e5 {[%clk
0:02:39.5]} 13. O-O {[%clk 0:02:58.8]} 13... Bf5 {[%clk 0:02:38.8]} 14. Nb3
{[%clk 0:02:58.3]} 14... Rad8 {[%clk 0:02:30]} 15. f3 {[%clk 0:02:54.5]} 15...
Nd7 {[%clk 0:02:26.4]} 16. Qd2 {[%clk 0:02:52]} 16... Bxd3 {[%clk 0:02:25.6]}
17. exd3 {[%clk 0:02:51.5]} 17... Ndxc5 {[%clk 0:02:25.3]} 18. Nxc5 {[%clk
0:02:51.2]} 18... Nxc5 {[%clk 0:02:26.2]} 19. f4 {[%clk 0:02:49.4]} 19... f6
{[%clk 0:01:41.3]} 20. Bd5+ {[%clk 0:02:33.4]} 20... Kh8 {[%clk 0:01:40.9]} 21.
Rf3 {[%clk 0:02:30.4]} 21... Rfe8 {[%clk 0:01:17.8]} 22. fxe5 {[%clk 0:02:20.2]}
22... Rxe5 {[%clk 0:01:18.7]} 23. Qxb4 {[%clk 0:02:15]} 23... Rde8 {[%clk
0:01:16]} 24. Raf1 {[%clk 0:02:13.5]} 24... Re3 {[%clk 0:01:14.6]} 25. Qd2
{[%clk 0:01:40.6]} 25... Nxd3 {[%clk 0:01:09.5]} 26. Rxe3 {[%clk 0:01:00.5]}
26... Rxe3 {[%clk 0:01:10.4]} 27. Rf3 {[%clk 0:01:01]} 27... Qe5 {[%clk
0:00:59.4]} 28. Bxb7 {[%clk 0:00:50.6]} 28... h6 {[%clk 0:00:30.9]} 29. a4
{[%clk 0:00:37.9]} 29... Nc5 {[%clk 0:00:23.5]} 30. Bd5 {[%clk 0:00:34.3]} 30...
Nxa4 {[%clk 0:00:21]} 31. Rf2 {[%clk 0:00:29.3]} 31... Nc5 {[%clk 0:00:19.9]}
32. b4 {[%clk 0:00:28.4]} 32... Nd3 {[%clk 0:00:16.7]} 33. Rf1 {[%clk
0:00:28.6]} 33... h5 {[%clk 0:00:11.3]} 34. Kh1 {[%clk 0:00:24.9]} 34... h4
{[%clk 0:00:11]} 35. b5 {[%clk 0:00:09.8]} 35... Nc5 {[%clk 0:00:06.2]} 36. gxh4
{[%clk 0:00:06.5]} 36... Re2 {[%clk 0:00:06.3]} 37. Qf4 {[%clk 0:00:07.3]} 37...
Qxf4 {[%clk 0:00:06.6]} 38. Rxf4 {[%clk 0:00:08.2]} 38... d3 {[%clk 0:00:07.5]}
39. Rd4 {[%clk 0:00:08.5]} 39... d2 {[%clk 0:00:07.4]} 40. Bf3 {[%clk
0:00:09.2]} 40... Re3 {[%clk 0:00:07.9]} 41. Bh5 {[%clk 0:00:06.9]} 41... Nd3
{[%clk 0:00:06.4]} 42. b6 {[%clk 0:00:06]} 42... Re1+ {[%clk 0:00:02.5]} 43. Kg2
{[%clk 0:00:05.9]} 43... d1=Q {[%clk 0:00:03.3]} 44. Bxd1 {[%clk 0:00:05.9]}
44... Rxd1 {[%clk 0:00:04.2]} 45. b7 {[%clk 0:00:03.7]} 45... Ne1+ {[%clk
0:00:04.5]} 46. Kf2 {[%clk 0:00:03.6]} 46... Rb1 {[%clk 0:00:05]} 47. Rd8+
{[%clk 0:00:02.2]} 47... Kh7 {[%clk 0:00:05.6]} 48. b8=Q {[%clk 0:00:03.1]}
48... Nd3+ {[%clk 0:00:06.5]} 49. Ke3 {[%clk 0:00:03]} 49... Rxb8 {[%clk
0:00:07.2]} 50. Rxb8 {[%clk 0:00:03.5]} 50... Ne5 {[%clk 0:00:08.1]} 51. c5
{[%clk 0:00:03.3]} 51... Kg6 {[%clk 0:00:08.1]} 52. Rc8 {[%clk 0:00:03.1]} 52...
Kf5 {[%clk 0:00:08.4]} 53. Rc7 {[%clk 0:00:03.3]} 53... g6 {[%clk 0:00:08.4]}
54. Kd4 {[%clk 0:00:02.5]} 54... Ke6 {[%clk 0:00:08.8]} 55. Rb7 {[%clk
0:00:03.1]} 55... Nf3+ {[%clk 0:00:08.8]} 56. Ke4 {[%clk 0:00:03.2]} 56... Nxh4
{[%clk 0:00:07.4]} 57. Rb6+ {[%clk 0:00:03.9]} 57... Ke7 {[%clk 0:00:07.5]} 58.
Kd5 {[%clk 0:00:02.5]} 58... Nf5 {[%clk 0:00:07.9]} 59. Rb7+ {[%clk 0:00:03.3]}
59... Kd8 {[%clk 0:00:07.8]} 60. c6 {[%clk 0:00:03.5]} 60... g5 {[%clk
0:00:03.5]} 61. Ke6 {[%clk 0:00:03.1]} 61... Nd4+ {[%clk 0:00:04.2]} 62. Kxf6
{[%clk 0:00:02.9]} 62... Nxc6 {[%clk 0:00:04.9]} 63. Kxg5 {[%clk 0:00:03.7]}
63... Ke8 {[%clk 0:00:05.5]} 64. Rb6 {[%clk 0:00:03.4]} 64... Ne7 {[%clk
0:00:05.6]} 65. h4 {[%clk 0:00:03.5]} 65... Kf7 {[%clk 0:00:06.1]} 66. h5 {[%clk
0:00:03.8]} 66... Kg8 {[%clk 0:00:05.8]} 67. Rb7 {[%clk 0:00:03.9]} 67... Nd5
{[%clk 0:00:04.3]} 68. h6 {[%clk 0:00:04.3]} 68... Kh8 {[%clk 0:00:04.4]} 69.
Rf7 {[%clk 0:00:03.4]} 69... Kg8 {[%clk 0:00:04.4]} 70. Kg6 {[%clk 0:00:03.7]}
70... Ne7+ {[%clk 0:00:01]} 71. Rxe7 {[%clk 0:00:04.1]} 71... Kf8 {[%clk
0:00:01.8]} 72. Re6 {[%clk 0:00:04.8]} 72... Kg8 {[%clk 0:00:02.7]} 73. Re8#
{[%clk 0:00:05.7]} 1-0

[Event "Early-Titled-Tuesday-Blitz-April-23-2024"]
[Site "Chess.com"]
[Date "2024.04.23"]
[Round "10"]
[White "Kildepiotr"]
[Black "eljanov"]
[Result "1-0"]
[WhiteElo "2750"]
[BlackElo "2891"]
[TimeControl "180+1"]
[EndTime "10:02:48 PDT"]
[Termination "Kildepiotr won on time"]

1. Nf3 {[%clk 0:02:58.1]} 1... Nf6 {[%clk 0:02:58.6]} 2. g3 {[%clk 0:02:58.5]}
2... b5 {[%clk 0:02:58.7]} 3. Bg2 {[%clk 0:02:59.1]} 3... Bb7 {[%clk 0:02:59.1]}
4. O-O {[%clk 0:02:59.8]} 4... e6 {[%clk 0:02:59.2]} 5. d3 {[%clk 0:03:00.4]}
5... c5 {[%clk 0:02:58.8]} 6. a4 {[%clk 0:02:59.5]} 6... b4 {[%clk 0:02:57.8]}
7. b3 {[%clk 0:02:59.7]} 7... d5 {[%clk 0:02:56.1]} 8. Bb2 {[%clk 0:02:59.8]}
8... Be7 {[%clk 0:02:53.3]} 9. Nbd2 {[%clk 0:02:59.6]} 9... O-O {[%clk 0:02:53]}
10. e4 {[%clk 0:02:57.9]} 10... Nc6 {[%clk 0:02:47.1]} 11. Ne5 {[%clk
0:02:55.9]} 11... Nxe5 {[%clk 0:02:37.5]} 12. Bxe5 {[%clk 0:02:56.8]} 12... Nd7
{[%clk 0:02:38.1]} 13. Bb2 {[%clk 0:02:54.1]} 13... Bf6 {[%clk 0:02:38.4]} 14.
Qc1 {[%clk 0:02:49.1]} 14... a5 {[%clk 0:02:37.5]} 15. f4 {[%clk 0:02:46.1]}
15... Rc8 {[%clk 0:02:36]} 16. Bxf6 {[%clk 0:02:43.8]} 16... Qxf6 {[%clk
0:02:33]} 17. e5 {[%clk 0:02:43.9]} 17... Qe7 {[%clk 0:02:32.9]} 18. Qe1 {[%clk
0:02:38.5]} 18... Ba6 {[%clk 0:02:25.7]} 19. Rf2 {[%clk 0:02:37.2]} 19... c4
{[%clk 0:02:21.1]} 20. dxc4 {[%clk 0:02:37.3]} 20... dxc4 {[%clk 0:02:21]} 21.
Ne4 {[%clk 0:02:36.9]} 21... Nc5 {[%clk 0:02:02.8]} 22. Nd6 {[%clk 0:02:36.7]}
22... Rc7 {[%clk 0:02:03.4]} 23. Qe3 {[%clk 0:02:34.1]} 23... cxb3 {[%clk
0:01:57.3]} 24. cxb3 {[%clk 0:02:34.1]} 24... Bb7 {[%clk 0:01:53.4]} 25. Rc1
{[%clk 0:02:26.6]} 25... Bxg2 {[%clk 0:01:53.2]} 26. Kxg2 {[%clk 0:02:21.6]}
26... Nb7 {[%clk 0:01:53.4]} 27. Nb5 {[%clk 0:02:07.4]} 27... Rxc1 {[%clk
0:01:52]} 28. Qxc1 {[%clk 0:02:08.3]} 28... Nc5 {[%clk 0:01:51.8]} 29. Qc4
{[%clk 0:02:04.3]} 29... Qb7+ {[%clk 0:01:49.8]} 30. Kg1 {[%clk 0:02:04.7]}
30... Qb6 {[%clk 0:01:46.9]} 31. Nd6 {[%clk 0:01:56.9]} 31... g6 {[%clk
0:01:46.7]} 32. Kg2 {[%clk 0:01:54.6]} 32... Nb7 {[%clk 0:01:33.5]} 33. Ne4
{[%clk 0:01:41.1]} 33... Rd8 {[%clk 0:01:31.1]} 34. Rd2 {[%clk 0:01:33.2]} 34...
Rxd2+ {[%clk 0:01:28.3]} 35. Nxd2 {[%clk 0:01:34.1]} 35... Qe3 {[%clk
0:01:28.3]} 36. Ne4 {[%clk 0:01:28.7]} 36... Kg7 {[%clk 0:01:28.7]} 37. h4
{[%clk 0:01:20.3]} 37... h5 {[%clk 0:01:28.1]} 38. Qc6 {[%clk 0:01:15.7]} 38...
Nd8 {[%clk 0:01:05.1]} 39. Qa8 {[%clk 0:01:15]} 39... Qe2+ {[%clk 0:01:05]} 40.
Nf2 {[%clk 0:01:15]} 40... Qd2 {[%clk 0:01:05.3]} 41. Qxa5 {[%clk 0:01:12.7]}
41... Nc6 {[%clk 0:01:03.9]} 42. Qb5 {[%clk 0:01:01.7]} 42... Nd4 {[%clk
0:01:04]} 43. Qd3 {[%clk 0:01:01.8]} 43... Qb2 {[%clk 0:01:04.2]} 44. a5 {[%clk
0:00:56.5]} 44... Nxb3 {[%clk 0:00:54.9]} 45. a6 {[%clk 0:00:56.7]} 45... Nc5
{[%clk 0:00:48.5]} 46. Qc4 {[%clk 0:00:51.5]} 46... Qc3 {[%clk 0:00:48.5]} 47.
Qxc3 {[%clk 0:00:39.9]} 47... bxc3 {[%clk 0:00:48.5]} 48. a7 {[%clk 0:00:40.6]}
48... c2 {[%clk 0:00:49]} 49. a8=Q {[%clk 0:00:40.3]} 49... c1=Q {[%clk
0:00:49.4]} 50. Qc6 {[%clk 0:00:25]} 50... Qe3 {[%clk 0:00:48.9]} 51. Qf3 {[%clk
0:00:24.4]} 51... Qd4 {[%clk 0:00:49.2]} 52. Qe2 {[%clk 0:00:22.7]} 52... Qd5+
{[%clk 0:00:36.1]} 53. Qf3 {[%clk 0:00:22.7]} 53... Qa2 {[%clk 0:00:36.4]} 54.
Qe3 {[%clk 0:00:22.4]} 54... Nd7 {[%clk 0:00:32.2]} 55. Qd4 {[%clk 0:00:19.7]}
55... Qa8+ {[%clk 0:00:25.2]} 56. Kh2 {[%clk 0:00:19]} 56... Qb7 {[%clk
0:00:24.6]} 57. Qe4 {[%clk 0:00:16.7]} 57... Qc7 {[%clk 0:00:22.6]} 58. Kg2
{[%clk 0:00:16.9]} 58... Nb6 {[%clk 0:00:22.9]} 59. Qd4 {[%clk 0:00:15.9]} 59...
Nd5 {[%clk 0:00:23]} 60. Qe4 {[%clk 0:00:15.3]} 60... Ne7 {[%clk 0:00:21.8]} 61.
Qf3 {[%clk 0:00:13.8]} 61... Nf5 {[%clk 0:00:21.7]} 62. Qe4 {[%clk 0:00:13.6]}
62... Qc3 {[%clk 0:00:21.6]} 63. Qf3 {[%clk 0:00:13.7]} 63... Qd2 {[%clk
0:00:21.8]} 64. Qd3 {[%clk 0:00:12.3]} 64... Qb2 {[%clk 0:00:20.3]} 65. Qf3
{[%clk 0:00:11.9]} 65... Nh6 {[%clk 0:00:16.6]} 66. Kh3 {[%clk 0:00:10.9]} 66...
Qb1 {[%clk 0:00:16.1]} 67. Kg2 {[%clk 0:00:09.2]} 67... Qc2 {[%clk 0:00:16.5]}
68. Kh3 {[%clk 0:00:09.2]} 68... Qa2 {[%clk 0:00:16.2]} 69. Kg2 {[%clk
0:00:09.6]} 69... Ng4 {[%clk 0:00:16.1]} 70. Kg1 {[%clk 0:00:09.7]} 70... Qa7
{[%clk 0:00:15.7]} 71. Kg2 {[%clk 0:00:09.6]} 71... Ne3+ {[%clk 0:00:16]} 72.
Kh3 {[%clk 0:00:10]} 72... Qd4 {[%clk 0:00:14.1]} 73. g4 {[%clk 0:00:10]} 73...
hxg4+ {[%clk 0:00:13]} 74. Nxg4 {[%clk 0:00:10.9]} 74... Nf5 {[%clk 0:00:13.3]}
75. Nf2 {[%clk 0:00:10.5]} 75... Qd8 {[%clk 0:00:12]} 76. Qg4 {[%clk 0:00:10.5]}
76... Qd2 {[%clk 0:00:11.3]} 77. Ne4 {[%clk 0:00:09.6]} 77... Qe3+ {[%clk
0:00:10.6]} 78. Ng3 {[%clk 0:00:10]} 78... Qd3 {[%clk 0:00:08.4]} 79. Kh2 {[%clk
0:00:10]} 79... Ne3 {[%clk 0:00:07.6]} 80. Qf3 {[%clk 0:00:10.5]} 80... Qd2+
{[%clk 0:00:08]} 81. Kh3 {[%clk 0:00:10.7]} 81... Qc1 {[%clk 0:00:08.2]} 82. h5
{[%clk 0:00:10.9]} 82... gxh5 {[%clk 0:00:05.7]} 83. Nxh5+ {[%clk 0:00:11.8]}
83... Kg6 {[%clk 0:00:05.7]} 84. Ng3 {[%clk 0:00:12.1]} 84... Qe1 {[%clk
0:00:05.4]} 85. Qh5+ {[%clk 0:00:12.2]} 85... Kg7 {[%clk 0:00:05.4]} 86. Qg5+
{[%clk 0:00:12.8]} 86... Kh7 {[%clk 0:00:05.7]} 87. Qh5+ {[%clk 0:00:12.9]}
87... Kg7 {[%clk 0:00:06.1]} 88. Qg5+ {[%clk 0:00:12.2]} 88... Kh7 {[%clk
0:00:06.6]} 89. Qh4+ {[%clk 0:00:12.7]} 89... Kg7 {[%clk 0:00:07]} 90. Nh5+
{[%clk 0:00:13]} 90... Kg8 {[%clk 0:00:05.9]} 91. Qxe1 {[%clk 0:00:13]} 1-0